bitfinex/quotes_ETHUSD_20240828
["timestamp","ask_amount","ask_price","bid_price","bid_amount"]
[1724844282428,5.1970141,2535.5,2534.2,5.2975]
[1724844284473,5.1970141,2535.5,2534.3,0.3952]
[1724844284680,1.08048225,2535.4,2534.3,3.96447]
[1724844286474,1.08048225,2535.4,2534.4,0.07890386]
[1724844287096,1.08048225,2535.4,2534.3,3.96447]
[1724844292371,1.08048225,2535.4,2534.4,2.2975]
[1724844292572,2.8077141,2535.5,2534.5,0.70509559]
[1724844292875,2.8077141,2535.5,2534.5,3.626197]
[1724844295542,2.8077141,2535.5,2534.6,0.0788985]
[1724844297461,2.8077141,2535.5,2534.5,3.0]
[1724844297637,2.8077141,2535.5,2534.4,2.2975]
[1724844297842,0.84155225,2535.4,2534.4,2.2975]
[1724844298053,0.84155225,2535.4,2534.4,5.2975]
[1724844299137,0.84155225,2535.4,2534.4,2.2975]
[1724844299341,0.84155225,2535.4,2534.4,5.2975]
[1724844301448,0.84155225,2535.4,2534.5,3.0]
[1724844301663,0.78537633,2535.3,2534.5,3.0]
[1724844301954,6.59379698,2535.2,2534.3,0.3952]
[1724844302154,6.59379698,2535.2,2534.1,2.2975]
[1724844302342,0.73791733,2535.1,2534.1,2.56677]
[1724844302543,0.73791733,2535.1,2534.2,1.01292857]
[1724844302846,0.73791733,2535.1,2534.2,0.3952]
[1724844303070,5.1970141,2535.5,2534.3,0.07890595]
[1724844303382,5.1970141,2535.5,2534.4,2.2975]
[1724844306546,2.8077141,2535.5,2534.5,2.99407454]
[1724844306857,2.8077141,2535.5,2534.6,0.29940745]
[1724844308120,2.8077141,2535.5,2534.6,3.29940745]
[1724844309222,2.8077141,2535.5,2534.6,3.0]
[1724844309439,2.8077141,2535.5,2534.5,2.2975]
[1724844313792,2.319,2535.4,2534.5,2.2975]
[1724844316896,4.20449698,2535.3,2534.3,3.0]
[1724844317094,0.6523497,2535.2,2534.3,3.0]
[1724844317309,0.6523497,2535.2,2534.4,0.61771666]
[1724844317515,0.6523497,2535.2,2534.3,3.0]
[1724844317831,6.52349698,2535.0,2534.2,2.7743]
[1724844318012,4.20449698,2534.8,2534.0,7.37]
[1724844318179,4.20449698,2534.8,2534.1,0.61778606]
[1724844318523,4.20449698,2534.8,2533.9,2.3791]
[1724844318695,0.4204497,2534.7,2533.9,2.3791]
[1724844319107,0.4204497,2534.7,2533.9,2.7743]
[1724844319625,6.52349698,2535.0,2533.9,2.7743]
[1724844319787,6.52349698,2535.0,2534.0,3.61779584]
[1724844319982,6.52349698,2535.0,2534.0,3.0]
[1724844322027,2.319,2535.0,2534.0,3.0]
[1724844323021,6.52349698,2535.0,2534.0,3.0]
[1724844323385,7.45661809,2535.0,2534.1,0.78339594]
[1724844323628,7.45661809,2535.0,2534.0,3.0]
[1724844325830,4.20449698,2534.8,2534.0,3.0]
[1724844325983,2.319,2534.7,2533.9,0.3952]
[1724844326198,0.6523497,2534.6,2533.9,0.3952]
[1724844327240,4.85684668,2534.6,2533.9,0.3952]
[1724844327405,4.20449698,2534.6,2533.8,0.61785604]
[1724844327601,4.20449698,2534.6,2533.5,0.81619015]
[1724844327804,0.93312111,2534.5,2533.6,4.05125324]
[1724844328002,0.93312111,2534.5,2533.7,0.61787841]
[1724844328208,0.93312111,2534.5,2533.6,0.3952]
[1724844328654,0.93312111,2534.5,2533.7,1.99110703]
[1724844328849,0.51376181,2534.4,2533.6,3.3952]
[1724844329056,0.51376181,2534.4,2533.7,0.61787054]
[1724844329249,0.51376181,2534.4,2533.6,0.3952]
[1724844329403,0.51376181,2534.4,2533.6,3.3952]
[1724844329751,0.51376181,2534.4,2533.5,0.3952]
[1724844329975,5.1267141,2534.7,2533.7,2.3791]
[1724844330267,5.1267141,2534.7,2533.7,5.3791]
[1724844330629,5.1267141,2534.7,2533.8,0.07892043]
[1724844330877,5.1267141,2534.7,2533.8,0.66424247]
[1724844331078,5.1267141,2534.7,2533.8,3.66424247]
[1724844332437,2.319,2534.7,2533.8,3.66424247]
[1724844333830,2.319,2534.7,2533.8,3.61784293]
[1724844334028,2.319,2534.7,2533.8,3.0]
[1724844334242,2.319,2534.7,2533.7,5.3791]
[1724844334475,2.319,2534.7,2533.8,0.61782664]
[1724844334779,2.319,2534.7,2533.9,1.2964382]
[1724844334934,2.319,2534.7,2533.9,0.67861156]
[1724844337274,2.319,2534.7,2533.8,3.0]
[1724844337487,2.319,2534.7,2533.7,3.0]
[1724844337656,2.319,2534.7,2533.8,0.61785825]
[1724844337861,2.319,2534.7,2533.6,3.3952]
[1724844338180,0.2319,2534.6,2533.7,1.37782346]
[1724844338386,0.2319,2534.6,2533.8,0.69677269]
[1724844338709,0.2319,2534.6,2533.8,0.07891893]
[1724844339588,0.2319,2534.6,2533.9,0.61783559]
[1724844339884,0.2319,2534.6,2533.7,2.67771536]
[1724844340087,0.2319,2534.6,2533.8,3.61783559]
[1724844340273,0.2319,2534.6,2533.8,3.0]
[1724844340467,0.2319,2534.6,2533.7,3.0]
[1724844340679,0.2319,2534.6,2533.7,0.72726282]
[1724844340983,0.2319,2534.6,2533.8,0.61787289]
[1724844341229,0.2319,2534.6,2533.7,2.05997393]
[1724844341365,0.2319,2534.6,2533.8,0.61787325]
[1724844341677,0.2319,2534.6,2533.8,3.0]
[1724844342077,0.2319,2534.6,2533.7,3.61786777]
[1724844342295,0.2319,2534.6,2533.7,0.70709214]
[1724844343074,4.43639698,2534.6,2533.7,0.70709214]
[1724844343292,2.3147,2534.5,2533.6,3.3952]
[1724844343464,2.3147,2534.5,2533.7,0.61787677]
[1724844343658,0.6751097,2534.4,2533.6,0.3952]
[1724844343850,0.6751097,2534.4,2533.7,0.61786179]
[1724844344180,2.3147,2534.5,2533.8,0.69674854]
[1724844344388,2.3147,2534.5,2533.8,0.07892135]
[1724844345343,2.3147,2534.5,2533.6,3.3952]
[1724844345587,2.3147,2534.5,2533.7,0.61787706]
[1724844345891,0.25466,2534.4,2533.6,3.3952]
[1724844348671,2.3147,2534.5,2533.7,0.07892496]
[1724844348868,2.3147,2534.5,2533.5,3.3952]
[1724844349192,2.3147,2534.5,2533.6,1.09200172]
[1724844349364,2.3147,2534.5,2533.7,0.6178767]
[1724844349565,2.54617,2534.5,2533.8,0.69679787]
[1724844349770,2.54617,2534.5,2533.6,0.3952]
[1724844350068,2.54617,2534.5,2533.7,0.61787228]
[1724844350267,2.54617,2534.5,2533.8,0.61786072]
[1724844350588,2.54617,2534.5,2533.6,1.25755134]
[1724844350794,2.54617,2534.5,2533.7,0.6178773]
[1724844350992,2.54617,2534.5,2533.6,1.25755134]
[1724844351291,2.3147,2534.5,2533.8,0.07892499]
[1724844351453,2.3147,2534.5,2533.9,0.61781999]
[1724844351660,2.3147,2534.5,2533.8,0.07892499]
[1724844355364,2.3147,2534.5,2533.9,0.6178185]
[1724844355563,2.3147,2534.5,2533.8,0.07892499]
[1724844355791,2.3147,2534.5,2533.8,0.45323908]
[1724844357179,2.3147,2534.5,2533.9,0.07671335]
[1724844360208,1.75292238,2534.4,2533.9,0.07671335]
[1724844360414,4.06762238,2534.0,2533.9,0.07671335]
[1724844361784,2.3147,2533.9,2532.5,2.06080223]
[1724844361985,2.3147,2533.1,2532.5,0.41097459]
[1724844362221,2.3147,2533.1,2532.2,0.3957]
[1724844362430,2.2947,2533.1,2532.2,0.3957]
[1724844362604,2.2947,2533.1,2532.2,1.06316725]
[1724844363291,2.8077141,2534.4,2532.4,2.3984]
[1724844363527,2.8077141,2534.4,2532.5,2.00290138]
[1724844363686,2.8077141,2534.4,2532.6,3.77206811]
[1724844363905,0.28077141,2534.3,2532.7,0.51904595]
[1724844364234,0.28077141,2534.3,2532.7,0.44010128]
[1724844364429,0.28077141,2534.3,2532.7,3.44010128]
[1724844364658,0.50883371,2534.2,2532.7,3.44010128]
[1724844364945,0.50883371,2534.2,2532.8,1.00505202]
[1724844365454,2.3147,2534.1,2532.8,1.00505202]
[1724844365945,2.3147,2534.1,2532.9,0.07895089]
[1724844366101,2.3147,2534.1,2532.9,4.29096985]
[1724844366443,2.3147,2534.1,2533.1,2.3984]
[1724844366749,2.3147,2534.1,2533.2,0.61877295]
[1724844366951,2.3147,2534.1,2533.3,0.07893266]
[1724844367238,2.8077141,2534.4,2533.3,0.07893266]
[1724844367239,5.1224141,2534.4,2533.3,0.07893266]
[1724844367442,2.3147,2534.4,2533.4,0.55]
[1724844367669,2.3147,2534.4,2533.6,4.21201896]
[1724844367829,2.3147,2534.4,2533.7,0.07892083]
[1724844368025,2.3147,2534.4,2533.6,4.21201896]
[1724844368274,2.3147,2534.4,2533.5,0.79989327]
[1724844368471,2.54617,2534.3,2533.4,3.0]
[1724844368783,2.3147,2534.3,2533.4,3.0]
[1724844370780,2.3147,2534.3,2533.3,7.37]
[1724844370938,2.3147,2534.3,2532.9,0.3957]
[1724844371952,2.3147,2534.3,2533.0,0.07894347]
[1724844372493,2.3147,2534.3,2532.9,0.3957]
[1724844372494,2.3147,2534.1,2532.9,0.3957]
[1724844372656,2.3147,2533.9,2532.9,0.3957]
[1724844373051,2.3147,2533.9,2533.0,0.07894836]
[1724844373899,2.3147,2533.9,2533.0,4.68666732]
[1724844374189,2.3147,2533.9,2533.0,4.60771896]
[1724844374354,2.3147,2533.9,2533.1,0.4607719]
[1724844374679,2.3147,2533.9,2532.8,1.00505202]
[1724844375077,2.4093,2533.8,2532.8,1.08400131]
[1724844375264,2.4093,2533.8,2532.8,0.07894929]
[1724844376208,2.4093,2533.8,2532.8,3.47464929]
[1724844377671,2.4093,2533.8,2532.8,3.3957]
[1724844378849,2.4093,2533.8,2532.8,3.47465587]
[1724844379105,2.4093,2533.8,2532.9,4.98068644]
[1724844379310,2.4093,2533.8,2533.0,3.0]
[1724844380393,2.4093,2533.8,2533.1,0.07894426]
[1724844382012,2.4093,2533.8,2533.0,3.0]
[1724844382212,2.4093,2533.8,2533.0,3.07894842]
[1724844382415,2.65023,2533.8,2533.0,3.07894842]
[1724844383300,2.65023,2533.8,2533.0,3.0]
[1724844384231,2.65023,2533.8,2532.8,3.3957]
[1724844384404,2.65023,2533.8,2532.6,3.0]
[1724844384839,2.65023,2533.8,2532.6,3.3957]
[1724844385137,2.4093,2533.6,2532.6,3.3957]
[1724844385343,0.6862249,2533.7,2532.1,1.0]
[1724844385344,2.4093,2532.8,2532.1,1.0]
[1724844385506,2.4093,2532.6,2532.1,1.0]
[1724844386198,2.4093,2533.5,2532.1,1.0]
[1724844387318,2.4093,2533.2,2532.1,1.0]
[1724844387646,2.4093,2533.1,2532.1,1.8060619]
[1724844387800,2.4093,2533.1,2532.1,1.0]
[1724844391241,3.0,2533.2,2532.1,1.0]
[1724844391939,2.8077141,2533.1,2532.1,1.0]
[1724844395148,2.8077141,2533.1,2532.1,1.07897628]
[1724844398750,2.8077141,2533.3,2532.1,1.47467628]
[1724844398915,2.8077141,2533.3,2532.2,4.69905659]
[1724844399112,2.8077141,2533.3,2532.3,3.0]
[1724844400214,2.8077141,2533.3,2532.2,1.03703763]
[1724844401326,2.8077141,2533.3,2532.1,4.3957]
[1724844401940,2.8077141,2533.3,2532.2,0.07897035]
[1724844403027,2.8077141,2533.3,2532.1,4.3957]
[1724844403537,2.8077141,2533.3,2532.2,0.07897034]
[1724844404418,2.8077141,2533.3,2532.1,4.3957]
[1724844404614,1.92997331,2533.2,2532.1,4.3957]
[1724844404814,1.92997331,2533.2,2532.1,1.3957]
[1724844407275,1.92997331,2533.2,2532.1,4.3957]
[1724844409138,1.92997331,2533.2,2532.1,4.0]
[1724844409339,1.92997331,2533.2,2532.2,3.0]
[1724844409581,0.47376874,2533.1,2532.1,1.0]
[1724844410755,0.47376874,2533.1,2532.2,0.07897411]
[1724844411079,0.47376874,2533.1,2532.1,4.0]
[1724844411238,0.47376874,2533.1,2532.2,0.8212019]
[1724844412582,2.8077141,2533.3,2532.3,4.29098746]
[1724844412754,2.8077141,2533.3,2532.4,3.0]
[1724844415649,2.8077141,2533.3,2532.5,0.69709587]
[1724844415874,0.6493939,2533.5,2532.5,0.07896039]
[1724844416087,2.8077141,2533.6,2532.5,0.07896039]
[1724844416391,2.8077141,2533.6,2532.4,3.0]
[1724844419182,15.28,2533.9,2532.6,4.21201896]
[1724844419183,5.8077141,2533.9,2532.6,4.21201896]
[1724844419392,0.58077141,2533.8,2532.7,3.50804823]
[1724844419545,2.8077141,2533.9,2532.8,0.07895076]
[1724844422486,2.8077141,2533.9,2532.7,3.0]
[1724844422644,3.38870136,2533.9,2532.4,3.0]
[1724844422962,3.38870136,2533.9,2532.5,0.55]
[1724844423161,0.33887014,2533.8,2532.6,0.355]
[1724844423359,0.9198574,2533.8,2532.6,0.355]
[1724844424205,0.9198574,2533.8,2532.3,7.37]
[1724844424377,2.8077141,2533.5,2532.1,3.88043987]
[1724844424576,2.8077141,2533.5,2532.1,1.0]
[1724844424815,2.8077141,2533.5,2532.2,0.42761399]
[1724844424816,0.28077141,2533.4,2532.2,0.42761399]
[1724844425115,0.28077141,2533.4,2532.1,1.0]
[1724844425316,3.28077141,2533.4,2532.1,1.0]
[1724844426084,0.55,2533.3,2532.1,1.0]
[1724844426285,2.8077141,2533.2,2532.1,1.0]
[1724844426592,0.33577141,2533.1,2532.1,1.0]
[1724844429300,2.2698,2533.0,2532.1,1.0]
[1724844430213,2.2698,2532.9,2532.1,1.0]
[1724844431525,2.4948,2532.7,2532.1,1.0]
[1724844431928,2.4948,2532.6,2532.1,1.0]
[1724844432157,2.4948,2532.4,2532.1,1.0]
[1724844432366,6.70681896,2532.4,2532.1,1.0]
[1724844435268,2.4948,2532.3,2532.1,1.0]
[1724844439601,2.2562,2532.2,2532.1,1.0]
[1724844440465,6.46821896,2532.2,2532.1,1.0]
[1724844440774,5.2562,2532.2,2532.1,1.0]
[1724844440959,2.2562,2532.2,2532.1,1.0]
[1724844442873,3.0,2532.4,2532.1,1.0]
[1724844443099,0.33580987,2532.3,2532.1,1.0]
[1724844446016,2.4165,2532.2,2532.1,1.0]
[1724844448616,2.9665,2532.2,2532.1,1.0]
[1724844448980,5.9103,2532.2,2532.1,1.0]
[1724844449377,10.12231896,2532.2,2532.1,1.0]
[1724844449880,14.81844238,2532.2,2532.1,1.0]
[1724844450092,16.72148851,2532.2,2532.1,1.0]
[1724844451304,16.18936509,2532.2,2532.1,1.0]
[1724844451828,12.02536509,2532.2,2532.1,1.0]
[1724844455002,11.47536509,2532.2,2532.1,1.0]
[1724844456501,12.55748851,2532.2,2532.1,1.0]
[1724844456706,13.08085364,2532.2,2532.1,1.0]
[1724844458426,17.24485364,2532.2,2532.1,1.0]
[1724844460055,12.50946955,2532.2,2532.1,1.0]
[1724844460220,13.03283468,2532.2,2532.1,0.78125]
[1724844460421,32.81283468,2532.2,2532.1,0.78125]
[1724844461222,2.3541,2531.9,2530.3,2.5276733]
[1724844461568,2.3541,2531.5,2530.3,2.5276733]
[1724844461717,0.55,2531.4,2530.3,2.5276733]
[1724844461920,3.55,2531.4,2530.3,2.5276733]
[1724844462160,0.59041,2531.3,2530.3,2.82001063]
[1724844462452,0.55,2531.2,2530.3,2.82001063]
[1724844462754,3.0,2531.2,2530.4,2.37187456]
[1724844462955,2.8077141,2531.3,2530.6,2.3172]
[1724844463820,3.0,2531.2,2530.6,2.3172]
[1724844465548,3.0,2531.2,2530.4,2.48317456]
[1724844465730,1.36284141,2531.1,2530.4,2.48317456]
[1724844467162,0.81284141,2531.1,2530.4,2.48317456]
[1724844467318,3.0,2531.2,2530.4,2.48317456]
[1724844467922,0.55,2531.1,2530.4,2.48317456]
[1724844471962,3.0,2531.2,2530.4,2.48317456]
[1724844479571,6.42948855,2531.2,2530.4,2.48317456]
[1724844479763,1.47372027,2531.1,2530.4,2.48317456]
[1724844479967,2.374,2531.0,2530.4,0.05467456]
[1724844480140,0.55,2530.9,2530.4,0.05467456]
[1724844480341,3.55,2530.9,2530.4,0.05467456]
[1724844480542,0.99794886,2530.8,2530.4,0.05467456]
[1724844480859,0.99794886,2530.8,2530.4,2.32887456]
[1724844481474,3.0,2530.8,2530.4,2.32887456]
[1724844481641,0.55,2530.9,2530.4,2.32887456]
[1724844481841,0.55,2531.0,2530.4,2.32887456]
[1724844482047,3.0,2531.1,2530.4,2.32887456]
[1724844482561,3.0,2531.2,2530.4,2.32887456]
[1724844482765,4.03931483,2531.2,2530.4,2.32887456]
[1724844483082,1.05548855,2531.1,2530.4,2.32887456]
[1724844483381,0.53212342,2531.1,2530.4,2.32887456]
[1724844484990,0.55,2531.0,2530.4,2.32887456]
[1724844485151,1.07336513,2531.0,2530.4,2.32887456]
[1724844485583,2.3456,2530.9,2530.4,2.32887456]
[1724844485883,0.39510886,2530.8,2530.4,2.32887456]
[1724844486287,3.39510886,2530.8,2530.4,2.32887456]
[1724844486597,3.39510886,2530.8,2530.4,0.05467456]
[1724844487050,0.55,2530.7,2530.4,0.05467456]
[1724844487490,0.39510886,2530.8,2530.4,0.05467456]
[1724844487650,0.33951089,2530.7,2530.4,0.05467456]
[1724844487866,2.8077141,2531.0,2530.4,0.05467456]
[1724844488086,0.55,2530.9,2530.4,0.05467456]
[1724844489054,0.55,2530.9,2530.5,2.3035]
[1724844490751,0.55,2530.9,2530.4,0.05467456]
[1724844492309,2.8077141,2531.0,2530.5,2.3035]
[1724844492455,3.43920465,2531.0,2530.5,2.3035]
[1724844492655,6.31490551,2531.2,2530.5,2.3035]
[1724844492968,3.31490551,2531.2,2530.5,2.3035]
[1724844493368,2.8077141,2531.2,2530.5,2.3035]
[1724844493999,2.8077141,2531.6,2530.6,0.07903571]
[1724844494292,33.11548855,2531.9,2530.6,0.07902007]
[1724844494293,15.0877141,2531.9,2530.6,0.07902007]
[1724844494494,2.4028,2532.1,2530.7,0.62900582]
[1724844494703,2.4028,2532.1,2530.7,0.55]
[1724844494860,2.4028,2532.1,2530.8,0.61853028]
[1724844495059,2.4028,2532.1,2530.7,0.55]
[1724844495284,2.64308,2532.1,2530.8,0.45837515]
[1724844495972,2.64308,2532.1,2530.8,4.67039411]
[1724844496171,2.64308,2532.1,2530.8,0.37937195]
[1724844529239,3.0,2532.6,2531.2,3.0]
[1724844536302,3.0,2532.6,2531.3,0.07899927]
[1724844536498,3.0,2532.6,2531.0,0.07899736]
[1724844536746,0.58077141,2532.5,2531.1,1.16843146]
[1724844536918,0.58077141,2532.5,2531.2,0.07898744]
[1724844537235,0.58077141,2532.5,2531.4,4.21340122]
[1724844537425,0.58077141,2532.5,2531.5,0.5621661]
[1724844538131,2.8077141,2532.7,2531.5,3.5621661]
[1724844538538,2.8077141,2532.7,2531.5,3.48317897]
[1724844539264,2.8077141,2532.7,2531.6,0.07898709]
[1724844541949,2.8077141,2532.7,2531.5,3.48317897]
[1724844542248,2.8077141,2532.7,2531.5,3.0]
[1724844542249,0.28077141,2532.6,2531.5,3.0]
[1724844542420,3.71229639,2532.6,2531.2,3.0]
[1724844542626,0.65200105,2532.5,2531.3,0.61845408]
[1724844542824,0.65200105,2532.5,2531.2,3.0]
[1724844543039,0.65200105,2532.5,2531.3,0.61845532]
[1724844543239,0.65200105,2532.5,2531.2,3.0]
[1724844543445,0.65200105,2532.5,2531.3,0.61843812]
[1724844543749,0.44827725,2532.4,2531.2,3.0]
[1724844543952,0.44827725,2532.4,2531.3,0.61846602]
[1724844544115,0.44827725,2532.4,2531.2,3.0]
[1724844544317,0.44827725,2532.4,2531.3,0.61845854]
[1724844544624,0.44827725,2532.4,2531.2,3.0]
[1724844544839,0.44827725,2532.4,2531.3,0.61846768]
[1724844545012,0.44827725,2532.4,2531.2,3.72134012]
[1724844545208,0.44827725,2532.4,2531.3,0.61846785]
[1724844545436,0.44827725,2532.4,2531.2,3.72134012]
[1724844545640,0.44827725,2532.4,2531.3,0.69746822]
[1724844545947,0.44827725,2532.4,2531.4,1.06034804]
[1724844546259,0.44827725,2532.4,2531.5,0.07899161]
[1724844549956,0.44827725,2532.4,2531.4,0.44188083]
[1724844551061,0.44827725,2532.4,2531.5,0.07899264]
[1724844551259,3.0,2532.6,2531.5,0.07899264]
[1724844552220,3.0,2532.6,2531.6,0.61836543]
[1724844552428,2.8077141,2532.7,2531.7,0.07898695]
[1724844552939,2.8077141,2532.7,2531.8,0.04732304]
[1724844553120,2.8077141,2532.7,2531.8,0.1263065]
[1724844554224,2.8077141,2532.7,2531.9,2.4278]
[1724844554426,2.8077141,2532.7,2531.9,2.50678354]
[1724844554649,2.8077141,2532.7,2532.1,2.4278]
[1724844554858,5.0646141,2533.4,2532.1,2.50677576]
[1724844555037,0.43152498,2533.7,2532.3,2.4278]
[1724844555038,2.2569,2533.7,2532.3,2.4278]
[1724844555243,2.2569,2533.7,2532.4,2.50675516]
[1724844555429,0.22569,2533.6,2532.6,2.4278]
[1724844565351,0.22569,2533.6,2532.7,0.078955]
[1724844565551,2.8077141,2533.8,2532.7,2.412155]
[1724844565753,2.8077141,2533.8,2532.9,2.3332]
[1724844566051,0.28077141,2533.7,2532.9,2.3332]
[1724844571663,2.2865,2533.6,2532.9,2.3332]
[1724844571860,5.2865,2533.6,2532.3,2.2874]
[1724844572200,5.0942141,2533.4,2532.3,2.2874]
[1724844572359,3.0,2533.3,2532.3,2.2874]
[1724844573563,2.369,2533.2,2532.3,2.2874]
[1724844573801,0.55,2533.1,2532.3,2.2874]
[1724844573963,2.4656,2533.0,2531.9,2.3058]
[1724844574159,3.3577141,2532.9,2531.9,2.3058]
[1724844574359,3.0,2532.8,2531.9,2.3058]
[1724844575021,3.0,2532.8,2531.9,2.38478237]
[1724844575213,3.0,2532.8,2532.1,2.3454]
[1724844579282,0.2919,2533.0,2532.1,2.3454]
[1724844582391,2.3956,2532.9,2532.1,2.3454]
[1724844582719,5.3956,2532.9,2532.1,2.3454]
[1724844586677,3.0,2532.9,2532.1,2.3454]
[1724844586884,0.32919,2532.8,2532.1,2.3454]
[1724844587115,0.2919,2533.0,2532.1,2.3454]
[1724844589822,0.2919,2533.0,2532.2,2.55807691]
[1724844590031,3.0,2533.1,2532.3,2.73490769]
[1724844590340,3.0,2533.1,2532.3,2.4791]
[1724844601208,2.8405,2533.0,2532.3,2.4791]
[1724844601548,3.0,2533.1,2532.3,2.4791]
[1724844607215,2.8077141,2533.2,2532.4,2.39946908]
[1724844607415,2.8077141,2533.2,2532.6,2.3205]
[1724844608056,2.8077141,2533.6,2532.7,2.42796423]
[1724844609033,2.8077141,2533.6,2532.9,2.4986]
[1724844609234,2.8077141,2533.6,2533.0,2.33024704]
[1724844612075,2.8077141,2534.0,2533.0,2.2513]
[1724844612375,3.43152498,2533.9,2533.0,2.2513]
[1724844613950,3.0,2533.9,2533.0,2.2513]
[1724844614451,0.80687141,2533.8,2533.0,2.2513]
[1724844614662,2.3339,2533.7,2533.0,2.2513]
[1724844614838,5.3339,2533.7,2533.0,2.2513]
[1724844616741,3.0,2533.7,2533.0,2.2513]
[1724844616933,3.80687141,2533.8,2533.0,2.2513]
[1724844617161,3.0,2533.9,2533.0,2.2513]
[1724844617574,3.0,2533.9,2533.1,0.04098073]
[1724844617872,3.0,2533.9,2533.1,2.4547]
[1724844618072,0.58077141,2533.8,2533.2,2.4959126]
[1724844618773,0.53077141,2533.8,2533.2,2.4959126]
[1724844619347,3.0,2533.9,2533.2,2.4959126]
[1724844620441,2.8077141,2534.0,2533.2,2.4959126]
[1724844620882,2.8077141,2534.0,2533.2,2.4547]
[1724844621652,2.8077141,2534.0,2533.4,2.2933]
[1724844621968,12.28,2534.2,2533.5,2.57469129]
[1724844622178,12.28,2534.2,2533.5,2.33334593]
[1724844623798,12.28,2534.2,2533.5,2.2933]
[1724844624003,12.28,2534.2,2533.7,2.4807]
[1724844624158,2.8077141,2534.3,2533.7,2.4807]
[1724844624986,3.23923908,2534.3,2533.7,2.4807]
[1724844625359,2.8077141,2534.3,2533.7,2.4807]
[1724844632713,3.0,2534.5,2533.7,2.4807]
[1724844632864,3.0,2534.4,2533.9,2.3915]
[1724844633067,3.0,2534.6,2533.9,2.3915]
[1724844633364,3.0,2534.6,2534.0,0.0369923]
[1724844633581,3.0,2534.6,2534.1,2.3454]
[1724844635200,0.43152498,2534.5,2534.1,2.3454]
[1724844635370,3.0,2534.6,2534.1,2.3454]
[1724844635564,1.83479141,2534.5,2534.1,2.3454]
[1724844636159,3.0,2534.6,2534.1,2.3454]
[1724844649117,3.0,2534.6,2533.2,2.2646]
[1724844649565,3.0,2534.6,2533.4,2.2646]
[1724844649844,0.64994391,2534.5,2533.6,2.39]
[1724844650201,3.0,2534.6,2533.6,2.39]
[1724844650405,3.0,2534.6,2533.7,0.03535777]
[1724844650602,3.0,2534.6,2533.7,2.39]
[1724844650845,3.0,2534.6,2533.8,2.42535777]
[1724844651145,3.60679141,2534.6,2533.8,2.42535777]
[1724844652047,3.60679141,2534.6,2533.8,2.39]
[1724844654539,2.3439,2534.4,2533.8,2.39]
[1724844654833,0.23439,2534.3,2533.8,2.39]
[1724844655210,3.23439,2534.3,2533.8,2.39]
[1724844655855,0.23439,2534.3,2533.8,2.39]
[1724844656053,0.55,2534.5,2533.8,2.39]
[1724844656211,3.60679141,2534.6,2533.8,2.39]
[1724844659816,4.03831639,2534.6,2533.8,2.39]
[1724844660309,3.60679141,2534.6,2533.8,2.39]
[1724844662521,5.99899141,2534.6,2533.8,2.39]
[1724844662740,0.90669055,2534.5,2533.8,2.39]
[1724844663555,0.55,2534.4,2533.8,2.39]
[1724844664123,0.90669055,2534.5,2533.8,2.39]
[1724844664363,3.0,2534.6,2533.8,2.39]
[1724844666367,3.0679141,2534.7,2533.8,2.39]
[1724844673098,0.2602,2534.7,2534.1,1.75351182]
[1724844673246,0.2602,2534.7,2534.4,2.4915]
[1724844673445,0.2602,2534.7,2534.6,2.4367]
[1724844678066,0.2602,2534.7,2533.6,2.3129]
[1724844678274,0.2602,2534.7,2533.7,2.75017206]
[1724844678478,0.2602,2534.7,2533.7,2.3129]
[1724844680800,2.9818,2534.6,2533.7,2.3129]
[1724844681204,3.0,2534.5,2533.7,2.3129]
[1724844681497,2.9818,2534.4,2532.7,2.3614]
[1724844681697,2.8077141,2534.0,2532.7,2.3614]
[1724844682051,3.55,2533.9,2532.7,2.3614]
[1724844682253,0.63577141,2533.8,2532.7,2.3614]
[1724844682455,3.3577141,2533.7,2532.7,2.3614]
[1724844682701,3.0,2533.6,2532.7,2.3614]
[1724844684230,0.55,2533.5,2532.7,2.3614]
[1724844685987,3.0,2533.6,2532.7,2.3614]
[1724844686193,3.0,2533.6,2532.8,0.23614]
[1724844687332,3.0,2533.6,2532.7,2.3614]
[1724844687702,3.0,2533.6,2532.8,0.03465251]
[1724844688837,2.4906,2533.5,2532.8,0.03465251]
[1724844688992,3.0406,2533.5,2532.5,2.4442]
[1724844689191,3.0406,2533.5,2532.6,0.03530932]
[1724844689192,0.54906,2533.4,2532.6,0.03530932]
[1724844690319,0.55,2533.3,2532.6,0.03530932]
[1724844690496,0.409906,2533.2,2532.2,2.4379]
[1724844690851,3.2176201,2533.2,2532.3,0.0355219]
[1724844690994,3.2176201,2533.2,2532.2,2.4379]
[1724844691191,2.8077141,2533.2,2532.2,2.68169]
[1724844691396,2.8077141,2533.2,2532.4,2.4406]
[1724844691895,2.8077141,2533.2,2532.5,0.0356282]
[1724844693727,2.8077141,2533.2,2532.5,0.11459009]
[1724844694034,2.8077141,2533.2,2532.5,0.29114721]
[1724844695445,5.8077141,2533.4,2532.5,0.29114721]
[1724844695645,2.8077141,2533.4,2532.5,0.0356282]
[1724844696732,2.8077141,2533.4,2532.4,2.4406]
[1724844697847,2.8077141,2533.4,2532.4,2.5195671]
[1724844698177,2.8077141,2533.4,2532.5,2.3562282]
[1724844698467,2.8077141,2533.4,2532.7,2.3206]
[1724844698841,2.8077141,2533.4,2532.8,0.03577313]
[1724844701335,6.30975628,2533.3,2532.8,0.03577313]
[1724844701539,6.85975628,2533.3,2532.8,0.03577313]
[1724844701856,6.85975628,2533.3,2532.2,2.3565]
[1724844702217,0.96674704,2533.2,2532.2,2.3565]
[1724844702557,0.96674704,2533.2,2532.3,0.03576346]
[1724844707491,0.55,2533.1,2532.3,0.03576346]
[1724844707701,2.3788,2533.0,2532.3,0.03576346]
[1724844707919,5.3788,2533.0,2532.3,0.03576346]
[1724844708076,1.14288,2532.9,2531.9,2.3355]
[1724844708422,4.14288,2532.9,2531.9,2.3355]
[1724844712290,3.59288,2532.9,2531.9,2.3355]